fUST/lending_fUST_20240713
["ID","MTS","AMOUNT","RATE_DAILY","PERIOD"]
[331918282,1720841439183,-269.14879446,0.00024657,2]
[331918283,1720841439192,-500.0,0.00024657,2]
[331918284,1720841439202,-500.0,0.00024657,2]
[331918285,1720841439212,-500.0,0.00024657,2]
[331918286,1720841439222,-500.0,0.00024657,2]
[331918287,1720841439231,-500.0,0.00024657,2]
[331918288,1720841439240,-500.0,0.00024657,2]
[331918289,1720841439250,-505.70293872,0.00024657,2]
[331918290,1720841439260,-500.0,0.00024657,2]
[331918291,1720841439269,-500.0,0.00024657,2]
[331918292,1720841439279,-500.0,0.00024657,2]
[331918293,1720841439288,-500.0,0.00024657,2]
[331918294,1720841439299,-500.0,0.00024657,2]
[331918295,1720841439308,-500.0,0.00024657,2]
[331918296,1720841439318,-500.0,0.00024657,2]
[331918297,1720841439328,-500.0,0.00024657,2]
[331918298,1720841439338,-507.50119862,0.00024657,2]
[331918299,1720841439348,-500.0,0.00024657,2]
[331918300,1720841439357,-505.52096401,0.00024657,2]
[331918301,1720841439368,-505.97876331,0.00024657,2]
[331918302,1720841439378,-500.0,0.00024657,2]
[331918303,1720841439388,-500.0,0.00024657,2]
[331918304,1720841439398,-500.0,0.00024657,2]
[331918305,1720841439408,-500.0,0.00024657,2]
[331918306,1720841439418,-500.0,0.00024657,2]
[331918307,1720841439431,-500.0,0.00024657,2]
[331918308,1720841439440,-500.0,0.00024657,2]
[331918309,1720841439450,-500.0,0.00024657,2]
[331918310,1720841439461,-505.6806736,0.00024657,2]
[331918311,1720841439470,-500.0,0.00024657,2]
[331918312,1720841439480,-500.0,0.00024657,2]
[331918313,1720841439490,-500.0,0.00024657,2]
[331918314,1720841439499,-500.0,0.00024657,2]
[331918315,1720841439509,-500.0,0.00024657,2]
[331918316,1720841439519,-500.0,0.00024657,2]
[331918317,1720841439528,-500.0,0.00024657,2]
[331918318,1720841439538,-500.0,0.00024657,2]
[331918319,1720841439547,-500.0,0.00024657,2]
[331918320,1720841439557,-500.0,0.00024657,2]
[331918321,1720841439567,-500.0,0.00024657,2]
[331918322,1720841439578,-500.0,0.00024657,2]
[331918323,1720841439588,-500.0,0.00024657,2]
[331918324,1720841439599,-500.0,0.00024657,2]
[331918325,1720841439609,-500.0,0.00024657,2]
[331918326,1720841439618,-500.0,0.00024657,2]
[331918327,1720841439628,-500.0,0.00024657,2]
[331918328,1720841439638,-500.0,0.00024657,2]
[331918329,1720841439648,-505.70266163,0.00024657,2]
[331918330,1720841439658,-575.08586764,0.00024657,2]
[331918331,1720841439669,-500.0,0.00024657,2]
[331918332,1720841439680,-595.98,0.00024657,2]
[331918333,1720841439691,-504.76852434,0.00024657,2]
[331918334,1720841439700,-506.10635312,0.00024657,2]
[331918335,1720841439709,-500.0,0.00024657,2]
[331918336,1720841439719,-500.0,0.00024657,2]
[331918337,1720841439728,-500.0,0.00024657,2]
[331918338,1720841439739,-330.60897548,0.00024657,2]
[331918339,1720841439750,-500.0,0.00024657,2]
[331918340,1720841439760,-500.0,0.00024657,2]
[331918341,1720841439771,-500.0,0.00024657,2]
[331918342,1720841439782,-500.0,0.00024657,2]
[331918343,1720841439792,-500.0,0.00024657,2]
[331918344,1720841439802,-500.0,0.00024657,2]
[331918345,1720841439812,-511.16522925,0.00024657,2]
[331918346,1720841439822,-500.0,0.00024657,2]
[331918347,1720841439832,-500.0,0.00024657,2]
[331918348,1720841439842,-500.0,0.00024657,2]
[331918349,1720841439852,-500.0,0.00024657,2]
[331918350,1720841439862,-500.0,0.00024657,2]
[331918351,1720841439872,-500.0,0.00024657,2]
[331918352,1720841439883,-500.0,0.00024657,2]
[331918353,1720841439892,-500.0,0.00024657,2]
[331918354,1720841439902,-500.0,0.00024657,2]
[331918355,1720841439912,-500.0,0.00024657,2]
[331918356,1720841439926,-500.0,0.00024657,2]
[331918357,1720841439936,-500.0,0.00024657,2]
[331918358,1720841439946,-500.0,0.00024657,2]
[331918359,1720841439955,-500.0,0.00024657,2]
[331918360,1720841439966,-500.0,0.00024657,2]
[331918361,1720841439977,-500.0,0.00024657,2]
[331918362,1720841439986,-500.0,0.00024657,2]
[331918363,1720841439996,-500.0,0.00024657,2]
[331918364,1720841440006,-500.0,0.00024657,2]
[331918365,1720841440016,-267.1765909,0.00024657,2]
[331918366,1720841440025,-500.0,0.00024657,2]
[331918367,1720841440035,-500.0,0.00024657,2]
[331918368,1720841440044,-500.0,0.00024657,2]
[331918369,1720841440054,-486.86017583,0.00024657,2]
[331918370,1720841440063,-500.0,0.00024657,2]
[331918371,1720841440073,-500.0,0.00024657,2]
[331918372,1720841440082,-500.0,0.00024657,2]
[331918373,1720841440091,-500.0,0.00024657,2]
[331918374,1720841440101,-500.0,0.00024657,2]
[331918375,1720841440111,-500.0,0.00024657,2]
[331918376,1720841440120,-500.0,0.00024657,2]
[331918377,1720841440129,-512.78268299,0.00024657,2]
[331918378,1720841440138,-500.0,0.00024657,2]
[331918379,1720841440148,-523.17477982,0.00024657,2]
[331918380,1720841440157,-500.0,0.00024657,2]
[331918381,1720841440167,-500.0,0.00024657,2]
[331918382,1720841440179,-500.0,0.00024657,2]
[331918383,1720841440190,-337.23,0.00024657,2]
[331918384,1720841440199,-329.03583086,0.00024657,2]
[331918385,1720841440209,-500.0,0.00024657,2]
[331918386,1720841440219,-500.0,0.00024657,2]
[331918387,1720841440228,-500.0,0.00024657,2]
[331918388,1720841440237,-500.0,0.00024657,2]
[331918389,1720841440247,-500.0,0.00024657,2]
[331918390,1720841440256,-503.00085207,0.00024657,2]
[331918391,1720841440265,-500.0,0.00024657,2]
[331918392,1720841440274,-500.0,0.00024657,2]
[331918393,1720841440284,-507.63912514,0.00024657,2]
[331918394,1720841440294,-500.0,0.00024657,2]
[331918396,1720841440303,-500.0,0.00024657,2]
[331918398,1720841440313,-500.0,0.00024657,2]
[331918399,1720841440322,-507.9055144,0.00024657,2]
[331918400,1720841440331,-1306.15,0.00024657,2]
[331918401,1720841440340,-508.37111706,0.00024657,2]
[331918402,1720841440350,-500.0,0.00024657,2]
[331918403,1720841440360,-500.0,0.00024657,2]
[331918404,1720841440370,-500.0,0.00024657,2]
[331918405,1720841440379,-500.0,0.00024657,2]
[331918406,1720841440389,-500.0,0.00024657,2]
[331918407,1720841440399,-509.78353548,0.00024657,2]
[331918408,1720841440408,-529.04,0.00024657,2]
[331918409,1720841440418,-500.0,0.00024657,2]
[331918410,1720841440429,-500.0,0.00024657,2]
[331918411,1720841440438,-505.27746407,0.00024657,2]
[331918412,1720841440447,-500.0,0.00024657,2]
[331918413,1720841440456,-500.0,0.00024657,2]
[331918414,1720841440466,-592.53660505,0.00024657,2]
[331918415,1720841440476,-500.0,0.00024657,2]
[331918416,1720841440485,-599.65511533,0.00024657,2]
[331918417,1720841440495,-500.0,0.00024657,2]
[331918418,1720841440504,-500.0,0.00024657,2]
[331918420,1720841440514,-500.0,0.00024657,2]
[331918422,1720841440525,-506.2134527,0.00024657,2]
[331918424,1720841440534,-518.50492541,0.00024657,2]
[331918426,1720841440544,-500.0,0.00024657,2]
[331918428,1720841440554,-500.0,0.00024657,2]
[331918430,1720841440564,-500.0,0.00024657,2]
[331918432,1720841440573,-19730.0,0.00024657,2]
[331918434,1720841440583,-500.0,0.00024657,2]
[331918436,1720841440592,-500.0,0.00024657,2]
[331918438,1720841440602,-500.0,0.00024657,2]
[331918439,1720841440611,-500.0,0.00024657,2]
[331918440,1720841440621,-504.57137688,0.00024657,2]
[331918441,1720841440630,-2223.36,0.00024657,2]
[331918442,1720841440640,-500.0,0.00024657,2]
[331918443,1720841440650,-500.0,0.00024657,2]
[331918444,1720841440660,-500.0,0.00024657,2]
[331918445,1720841440672,-500.0,0.00024657,2]
[331918446,1720841440683,-500.0,0.00024657,2]
[331918447,1720841440693,-500.0,0.00024657,2]
[331918448,1720841440702,-505.61919787,0.00024657,2]
[331918449,1720841440712,-500.0,0.00024657,2]
[331918451,1720841440722,-500.0,0.00024657,2]
[331918453,1720841440731,-178.69752683,0.00024657,2]
[331918455,1720841440741,-575.43587063,0.00024657,2]
[331918457,1720841440751,-500.0,0.00024657,2]
[331918458,1720841440761,-571.25590677,0.00024657,2]
[331918460,1720841440771,-500.0,0.00024657,2]
[331918462,1720841440781,-500.0,0.00024657,2]
[331918464,1720841440793,-500.0,0.00024657,2]
[331918465,1720841440803,-543.447045,0.00024657,2]
[331918466,1720841440812,-500.0,0.00024657,2]
[331918467,1720841440822,-209.78652868,0.00024657,2]
[331918468,1720841440832,-512.33986517,0.00024657,2]
[331918469,1720841440842,-1500.0,0.00024657,2]
[331918470,1720841440851,-534.11875714,0.00024657,2]
[331918471,1720841440861,-500.0,0.00024657,2]
[331918472,1720841440871,-504.97266757,0.00024657,2]
[331918473,1720841440880,-500.0,0.00024657,2]
[331918474,1720841440889,-500.0,0.00024657,2]
[331918475,1720841440899,-500.0,0.00024657,2]
[331918476,1720841440909,-500.0,0.00024657,2]
[331918477,1720841440922,-504.76729393,0.00024657,2]
[331918478,1720841440931,-500.0,0.00024657,2]
[331918479,1720841440942,-665.4,0.00024657,2]
[331918480,1720841440952,-500.0,0.00024657,2]
[331918481,1720841440962,-500.0,0.00024657,2]
[331918482,1720841440972,-500.0,0.00024657,2]
[331918483,1720841440983,-1027.48,0.00024657,2]
[331918484,1720841440992,-500.0370202,0.00024657,2]
[331918485,1720841441004,-255.54732083,0.00024657,2]
[331918486,1720841441013,-504.36589478,0.00024657,2]
[331918487,1720841441023,-581.32,0.00024657,2]
[331918488,1720841441032,-500.0,0.00024657,2]
[331918489,1720841441043,-280.85561515,0.00024657,2]
[331918490,1720841441053,-511.77111417,0.00024657,2]
[331918491,1720841441063,-500.0,0.00024657,2]
[331918492,1720841441073,-150.87924058,0.00024657,2]
[331918493,1720841441083,-4737.15936106,0.00024921,3]
[331918494,1720841441094,-500.0,0.0002493,2]
[331918495,1720841441103,-500.0,0.0002493,2]
[331918496,1720841441113,-500.0,0.00024931,2]
[331918497,1720841441123,-500.0,0.00024931,2]
[331918498,1720841441133,-367.14838889,0.00024931,2]
[331918499,1720841441142,-500.0,0.00024931,2]
[331918500,1720841441152,-500.0,0.00024931,2]
[331918501,1720841441162,-500.0,0.00024931,2]
[331918502,1720841441172,-596.31,0.00024931,2]
[331918503,1720841441182,-1018.14,0.00024931,2]
[331918504,1720841441192,-500.0,0.00024931,2]
[331918505,1720841441202,-500.0,0.00024931,2]
[331918506,1720841441212,-508.66457164,0.00024931,2]
[331918507,1720841441221,-151.74958278,0.00024931,2]
[331918508,1720841441230,-500.0,0.00024931,2]
[331918509,1720841441240,-500.0,0.00024931,2]
[331918510,1720841441249,-500.0,0.00024931,2]
[331918511,1720841441258,-500.0,0.00024931,2]
[331918512,1720841441390,-500.0,0.00024931,2]
[331918513,1720841441400,-500.0,0.00024931,2]
[331918514,1720841441410,-500.0,0.00024931,2]
[331918515,1720841441419,-500.0,0.00024931,2]
[331918516,1720841441430,-500.0,0.00024931,2]
[331918517,1720841441439,-500.0,0.00024931,2]
[331918518,1720841441448,-500.0,0.00024931,2]
[331918519,1720841441458,-521.25482482,0.00024931,2]
[331918520,1720841441467,-500.0,0.00024931,2]
[331918521,1720841441476,-500.0,0.00024931,2]
[331918522,1720841441486,-505.61207555,0.00024931,2]
[331918523,1720841441495,-500.0,0.00024931,2]
[331918524,1720841441504,-500.0,0.00024931,2]
[331918525,1720841441514,-500.0,0.00024931,2]
[331918526,1720841441524,-500.0,0.00024931,2]
[331918527,1720841441533,-500.0,0.00024931,2]
[331918528,1720841441543,-500.0,0.00024931,2]
[331918529,1720841441552,-500.0,0.00024931,2]
[331918530,1720841441561,-518.66612669,0.00024931,2]
[331918531,1720841441570,-500.0,0.00024931,2]
[331918532,1720841441579,-500.0,0.00024931,2]
[331918533,1720841441589,-150.59343618,0.00024931,2]
[331918534,1720841441599,-500.0,0.00024931,2]
[331918535,1720841441607,-500.0,0.00024931,2]
[331918536,1720841441617,-500.0,0.00024931,2]
[331918537,1720841441627,-595.98,0.00024931,2]
[331918538,1720841441636,-508.01643345,0.00024931,2]
[331918539,1720841441646,-566.84890666,0.00024931,2]
[331918540,1720841441655,-500.0,0.00024931,2]
[331918541,1720841441665,-500.0,0.00024931,2]
[331918542,1720841441674,-500.0,0.00024931,2]
[331918543,1720841441683,-500.0,0.00024931,2]
[331918544,1720841441693,-500.0,0.00024931,2]
[331918545,1720841441703,-500.0,0.00024931,2]
[331918546,1720841441712,-500.0,0.00024931,2]
[331918547,1720841441721,-500.0,0.00024931,2]
[331918548,1720841441731,-500.0,0.00024931,2]
[331918549,1720841441741,-500.0,0.00024931,2]
[331918550,1720841441751,-500.0,0.00024931,2]
[331918551,1720841441760,-507.54472973,0.00024931,2]
[331918552,1720841441770,-500.0,0.00024931,2]
[331918553,1720841441779,-500.0,0.00024931,2]
[331918554,1720841441789,-500.0,0.00024931,2]
[331918555,1720841441798,-500.0,0.00024931,2]
[331918556,1720841441808,-500.0,0.00024931,2]
[331918557,1720841441818,-500.0,0.00024931,2]
[331918558,1720841441827,-500.0,0.00024931,2]
[331918559,1720841441837,-500.0,0.00024931,2]
[331918560,1720841441846,-563.41442449,0.00024931,2]
[331918561,1720841441856,-500.0,0.00024931,2]
[331918562,1720841441865,-508.1676946,0.00024931,2]
[331918563,1720841441875,-500.0,0.00024931,2]
[331918564,1720841441886,-500.0,0.00024931,2]
[331918565,1720841441896,-500.0,0.00024931,2]
[331918566,1720841441906,-500.0,0.00024931,2]
[331918567,1720841441917,-509.8493958,0.00024931,2]
[331918568,1720841441929,-503.38008836,0.00024931,2]
[331918569,1720841441939,-161.3704729,0.00024931,2]
[331918570,1720841441949,-500.0,0.00024931,2]
[331918571,1720841441959,-500.0,0.00024931,2]
[331918572,1720841441968,-500.0,0.00024931,2]
[331918573,1720841441979,-500.0,0.00024931,2]
[331918574,1720841441988,-500.0,0.00024931,2]
[331918575,1720841441997,-526.74775119,0.00024931,2]
[331918576,1720841442007,-1306.15,0.00024931,2]
[331918577,1720841442017,-500.0,0.00024931,2]
[331918578,1720841442026,-500.0,0.00024931,2]
[331918579,1720841442036,-500.0,0.00024931,2]
[331918580,1720841442046,-508.63445828,0.00024931,2]
[331918581,1720841442056,-529.04,0.00024931,2]
[331918582,1720841442065,-500.0,0.00024931,2]
[331918583,1720841442075,-500.0,0.00024931,2]
[331918584,1720841442085,-500.0,0.00024931,2]
[331918585,1720841442095,-500.0,0.00024931,2]
[331918586,1720841442105,-506.78422867,0.00024931,2]
[331918587,1720841442115,-500.0,0.00024931,2]
[331918588,1720841442124,-500.0,0.00024931,2]
[331918589,1720841442133,-500.0,0.00024931,2]
[331918590,1720841442143,-500.0,0.00024931,2]
[331918591,1720841442152,-19730.0,0.00024931,2]
[331918592,1720841442161,-500.0,0.00024931,2]
[331918593,1720841442171,-500.0,0.00024931,2]
[331918594,1720841442181,-500.0,0.00024931,2]
[331918595,1720841442190,-500.0,0.00024931,2]
[331918596,1720841442200,-2223.36,0.00024931,2]
[331918597,1720841442209,-500.0,0.00024931,2]
[331918598,1720841442219,-508.5256993,0.00024931,2]
[331918599,1720841442228,-500.0,0.00024931,2]
[331918600,1720841442238,-500.0,0.00024931,2]
[331918601,1720841442247,-500.0,0.00024931,2]
[331918602,1720841442257,-500.0,0.00024931,2]
[331918603,1720841442267,-500.0,0.00024931,2]
[331918604,1720841442277,-500.0,0.00024931,2]
[331918605,1720841442286,-500.0,0.00024931,2]
[331918606,1720841442296,-1500.0,0.00024931,2]
[331918607,1720841442306,-500.0,0.00024931,2]
[331918608,1720841442316,-500.0,0.00024931,2]
[331918609,1720841442325,-500.0,0.00024931,2]
[331918610,1720841442334,-500.0,0.00024931,2]
[331918611,1720841442344,-500.0,0.00024931,2]
[331918612,1720841442353,-665.4,0.00024931,2]
[331918613,1720841442363,-505.37007845,0.00024931,2]
[331918614,1720841442373,-1027.48,0.00024931,2]
[331918615,1720841442383,-581.32,0.00024931,2]
[331918616,1720841442392,-500.0,0.00024931,2]
[331918617,1720841442401,-500.0,0.00024931,2]
[331918618,1720841442411,-14211.4780832,0.0002499,3]
[331918619,1720841442420,-367.71376121,0.00025,5]
[331918620,1720841442431,-18076.54915173,0.00025,5]
[331918621,1720841442440,-190.83926984,0.00025,2]
[331918622,1720841442450,-269603.53843865,0.00025,2]
[331918623,1720841442459,-152.821725,0.00025,7]
[331918624,1720841442469,-151.0,0.00025,7]
[331918625,1720841442478,-151.0,0.00025,7]
[331918626,1720841442488,-158.941587,0.00025,7]
[331918627,1720841442497,-22183.87414748,0.00025,2]
[331918628,1720841442507,-151.0,0.00025,7]
[331918629,1720841442517,-151.0,0.00025,7]
[331918630,1720841442526,-151.0,0.00025,7]
[331918631,1720841442535,-151.833814,0.00025,7]
[331918632,1720841442545,-553.06643119,0.00025037,2]
[331918633,1720841442554,-229.31956132,0.00025125,2]
[331918634,1720841442566,-2368.57968053,0.00025195,3]
[331918635,1720841442575,-500.0,0.00025204,2]
[331918636,1720841442584,-500.0,0.00025205,2]
[331918637,1720841442594,-500.0,0.00025205,2]
[331918638,1720841442603,-510.4079031,0.00025205,2]
[331918639,1720841442612,-500.0,0.00025205,2]
[331918640,1720841442621,-596.31,0.00025205,2]
[331918641,1720841442630,-1018.14,0.00025205,2]
[331918642,1720841442639,-500.0,0.00025205,2]
[331918643,1720841442649,-500.0,0.00025205,2]
[331918644,1720841442658,-500.0,0.00025205,2]
[331918645,1720841442668,-500.0,0.00025205,2]
[331918646,1720841442678,-500.0,0.00025205,2]
[331918647,1720841442688,-500.0,0.00025205,2]
[331918648,1720841442697,-648.17274804,0.00025205,2]
[331918649,1720841442707,-500.0,0.00025205,2]
[331918650,1720841442717,-507.56190565,0.00025205,2]
[331918651,1720841442726,-300.03960064,0.00025205,2]
[331918652,1720841442736,-500.0,0.00025205,2]
[331918653,1720841442746,-500.0,0.00025205,2]
[331918654,1720841442755,-500.0,0.00025205,2]
[331918655,1720841442765,-500.0,0.00025205,2]
[331918656,1720841442774,-500.0,0.00025205,2]
[331918657,1720841442783,-500.0,0.00025205,2]
[331918658,1720841442793,-518.32567408,0.00025205,2]
[331918659,1720841442803,-500.0,0.00025205,2]
[331918660,1720841442814,-500.0,0.00025205,2]
[331918661,1720841442825,-176.04576437,0.00025205,2]
[331918662,1720841442835,-500.0,0.00025205,2]
[331918663,1720841442845,-507.53882137,0.00025205,2]
[331918664,1720841442855,-595.98,0.00025205,2]
[331918665,1720841442864,-155.91498532,0.00025205,2]
[331918666,1720841442874,-500.0,0.00025205,2]
[331918667,1720841442885,-500.0,0.00025205,2]
[331918668,1720841442896,-500.0,0.00025205,2]
[331918669,1720841442907,-500.0,0.00025205,2]
[331918670,1720841442921,-508.69517944,0.00025205,2]
[331918671,1720841442932,-500.0,0.00025205,2]
[331918672,1720841442942,-500.0,0.00025205,2]
[331918673,1720841442952,-573.01017949,0.00025205,2]
[331918674,1720841442964,-500.0,0.00025205,2]
[331918675,1720841442976,-500.0,0.00025205,2]
[331918676,1720841442987,-500.0,0.00025205,2]
[331918677,1720841442998,-232.80833737,0.00025205,2]
[331918678,1720841443009,-500.0,0.00025205,2]
[331918679,1720841443019,-509.77301049,0.00025205,2]
[331918680,1720841443031,-500.0,0.00025205,2]
[331918681,1720841443041,-508.92620805,0.00025205,2]
[331918682,1720841443050,-500.0,0.00025205,2]
[331918683,1720841443060,-157.729156,0.00025205,7]
[331918684,1720841443069,-151.0,0.00025205,7]
[331918685,1720841443078,-157.729156,0.00025205,7]
[331918686,1720841443088,-500.0,0.00025205,2]
[331918687,1720841443098,-575.63745298,0.00025205,2]
[331918688,1720841443111,-500.0,0.00025205,2]
[331918689,1720841443120,-500.0,0.00025205,2]
[331918690,1720841443129,-151.0,0.00025205,7]
[331918691,1720841443139,-500.0,0.00025205,2]
[331918692,1720841443148,-500.0,0.00025205,2]
[331918693,1720841443157,-500.0,0.00025205,2]
[331918694,1720841443167,-151.0,0.00025205,7]
[331918695,1720841443177,-151.0,0.00025205,7]
[331918696,1720841443187,-1306.15,0.00025205,2]
[331918697,1720841443196,-500.0,0.00025205,2]
[331918698,1720841443205,-500.0,0.00025205,2]
[331918699,1720841443214,-500.0,0.00025205,2]
[331918700,1720841443225,-529.04,0.00025205,2]
[331918701,1720841443234,-492.60712779,0.00025205,2]
[331918702,1720841443243,-500.0,0.00025205,2]
[331918703,1720841443253,-500.0,0.00025205,2]
[331918704,1720841443261,-151.0,0.00025205,7]
[331918705,1720841443271,-151.0,0.00025205,7]
[331918706,1720841443279,-500.0,0.00025205,2]
[331918707,1720841443289,-151.0,0.00025205,7]
[331918708,1720841443298,-151.0,0.00025205,7]
[331918709,1720841443307,-515.50934712,0.00025205,2]
[331918710,1720841443316,-19730.0,0.00025205,2]
[331918711,1720841443325,-500.0,0.00025205,2]
[331918712,1720841443334,-500.0,0.00025205,2]
[331918713,1720841443344,-500.0,0.00025205,2]
[331918714,1720841443354,-2223.36,0.00025205,2]
[331918715,1720841443362,-500.0,0.00025205,2]
[331918716,1720841443371,-500.0,0.00025205,2]
[331918717,1720841443380,-502.94718806,0.00025205,2]
[331918718,1720841443390,-500.0,0.00025205,2]
[331918719,1720841443399,-84.33997338,0.00025205,2]
[331918756,1720841797822,2135.60833403,0.00018899,2]
[331918757,1720841822279,9125.74505272,0.00018899,2]
[331918760,1720841912469,160.15762601,0.00018899,2]
[331918771,1720842066762,741.80660103,0.00018899,2]
[331918773,1720842130118,34255.25341315,0.00018899,2]
[331918776,1720842215283,17346.63396448,0.00018899,2]
[331918777,1720842238146,518.34284537,0.00018899,2]
[331918779,1720842273509,160.5201035,0.00018899,2]
[331918783,1720842419070,155.45465387,0.00018899,2]
[331918785,1720842429121,-3931.50237219,0.00019164,2]
[331918786,1720842448106,-154.57491897,0.00021095,2]
[331918787,1720842448130,-276.648585,0.00021096,2]
[331918788,1720842448154,-525.58539138,0.0002243,2]
[331918789,1720842448178,-409.40389234,0.00022579,2]
[331918790,1720842448202,-2121.5280274,0.00022596,2]
[331918791,1720842448225,-150.0,0.000229,2]
[331918792,1720842448248,-166.44425746,0.00022943,2]
[331918793,1720842448271,-174.06400607,0.0002303,2]
[331918794,1720842478780,150.0,0.000189,2]
[331918814,1720842616927,665.64202418,0.0002243,2]
[331918846,1720842633553,-208.27742198,0.00022941,2]
[331918848,1720842633570,-208.27742198,0.00022941,2]
[331918851,1720842633580,-887.25555046,0.0002303,2]
[331919050,1720842647042,-71.60193801,0.0002303,2]
[331919051,1720842647055,-156.44613062,0.00023453,2]
[331919052,1720842647065,-156.44613062,0.00023453,2]
[331919053,1720842647074,-192.73738937,0.00024481,2]
[331919060,1720842969498,856.6303011,0.00018899,2]
[331919065,1720843180088,3082.91011284,0.00018899,2]
[331919067,1720843208855,318.9245039,0.00018899,2]
[331919068,1720843226751,6987.56477081,0.00018899,2]
[331919070,1720843245455,2423.17315558,0.00018899,2]
[331919073,1720843326866,288.39057041,0.00018899,2]
[331919079,1720843360096,3082.91011284,0.00018899,2]
[331919080,1720843365838,301.93869212,0.00018899,2]
[331919081,1720843390765,4910.34119044,0.00018899,2]
[331919082,1720843400461,2423.17315558,0.00018899,2]
[331919086,1720843467729,154.86619874,0.00018899,2]
[331919095,1720843595792,207.57301058,0.00018899,2]
[331919097,1720843644297,835.39756628,0.00016255,2]
[331919099,1720843654147,-154.57491897,0.00018899,2]
[331919100,1720843654168,-1094.84721631,0.00018899,2]
[331919101,1720843654190,-300.0,0.00019164,2]
[331919102,1720843654211,-492.904358,0.00019165,2]
[331919103,1720843654231,-2360.99575152,0.00019165,2]
[331919104,1720843724877,244.12140206,0.00016255,2]
[331919105,1720843745788,154.57491897,0.00016255,2]
[331919113,1720843750158,-944.05991393,0.00018899,2]
[331919114,1720843750179,-154.57491897,0.00018899,2]
[331919115,1720843750200,-209.38449537,0.00019165,2]
[331919116,1720843750221,-154.57491897,0.00019165,2]
[331919117,1720843750241,-343.7508152,0.00019165,2]
[331919118,1720843750261,-534.15056186,0.00019165,2]
[331919119,1720843750282,-182.82989065,0.00019165,2]
[331919120,1720843750302,-694.75668668,0.000199,2]
[331919121,1720843750322,-151.18583801,0.0002,2]
[331919122,1720843750341,-262.816155,0.00021096,2]
[331919123,1720843750361,-300.0,0.00021576,2]
[331919124,1720843750380,-24890.0,0.00021577,2]
[331919125,1720843750400,-188.7329246,0.00021821,2]
[331919126,1720843750419,-266.53758996,0.00021917,2]
[331919127,1720843750439,-1042.97057686,0.00021917,2]
[331919128,1720843750460,-185.5842244,0.00021918,2]
[331919129,1720843755162,209.38449537,0.00018899,2]
[331919130,1720843759917,154.57491897,0.00018899,2]
[331919131,1720843763862,407.45703,0.0002243,2]
[331919132,1720843764886,220.0622687,0.00019703,2]
[331919137,1720843776523,350.02277541,0.00019703,2]
[331919138,1720843779282,5760.5116849,0.00019703,2]
[331919139,1720843789850,154.57491897,0.00019703,2]
[331919140,1720843790352,182.71980261,0.00019703,2]
[331919141,1720843791285,154.94469637,0.00019703,2]
[331919148,1720843817632,231.52228951,0.0002243,2]
[331919201,1720843831892,-9724.03374017,0.00022941,2]
[331919203,1720843831902,-25299.32163917,0.00023453,2]
[331919205,1720843831911,-155.49822947,0.00023882,2]
[331919207,1720843831921,-258.43407742,0.00024,2]
[331919209,1720843831930,-156.4544038,0.00024123,2]
[331919211,1720843831940,-1476.44905891,0.00024481,3]
[331919213,1720843831950,-442.45314496,0.00024557,2]
[331919215,1720843831960,-489.83,0.00024644,3]